[Event "Early-Titled-Tuesday-Blitz-October-10-2023"]
[Site "Chess.com"]
[Date "2023.10.10"]
[Round "2"]
[White "Hasangatin_Ramil"]
[Black "MdChess1734"]
[Result "1-0"]
[WhiteElo "2717"]
[BlackElo "2384"]
[TimeControl "180+1"]
[EndTime "8:16:53 PDT"]
[Termination "Hasangatin_Ramil won on time"]

1. e4 {[%clk 0:03:00.9]} 1... c6 {[%clk 0:02:55.8]} 2. d4 {[%clk 0:03:00.5]}
2... d5 {[%clk 0:02:56.4]} 3. Nd2 {[%clk 0:03:01.1]} 3... dxe4 {[%clk
0:02:56.3]} 4. Nxe4 {[%clk 0:03:02]} 4... Nf6 {[%clk 0:02:57]} 5. Nxf6+ {[%clk
0:03:02.3]} 5... exf6 {[%clk 0:02:57.5]} 6. c3 {[%clk 0:03:02.7]} 6... Bd6
{[%clk 0:02:57.1]} 7. Bd3 {[%clk 0:03:03.6]} 7... O-O {[%clk 0:02:57.7]} 8. Qc2
{[%clk 0:03:04.5]} 8... Re8+ {[%clk 0:02:58]} 9. Ne2 {[%clk 0:03:05.4]} 9... h5
{[%clk 0:02:58.7]} 10. Be3 {[%clk 0:03:04.9]} 10... Nd7 {[%clk 0:02:57.6]} 11.
h3 {[%clk 0:03:05.3]} 11... Nf8 {[%clk 0:02:57.7]} 12. O-O {[%clk 0:03:05.7]}
12... h4 {[%clk 0:02:56.5]} 13. Rfe1 {[%clk 0:03:06]} 13... Bc7 {[%clk
0:02:51.4]} 14. Qd2 {[%clk 0:03:00.4]} 14... Ne6 {[%clk 0:02:44.7]} 15. Rad1
{[%clk 0:02:55]} 15... Qd6 {[%clk 0:02:42.8]} 16. f4 {[%clk 0:02:55.1]} 16... g6
{[%clk 0:02:39.4]} 17. Rf1 {[%clk 0:02:44.9]} 17... f5 {[%clk 0:02:02.5]} 18.
Rf3 {[%clk 0:02:44.3]} 18... b6 {[%clk 0:01:57.2]} 19. Bf2 {[%clk 0:02:43.9]}
19... Bd8 {[%clk 0:01:56.2]} 20. c4 {[%clk 0:02:41.5]} 20... Bf6 {[%clk
0:01:47.7]} 21. Bc2 {[%clk 0:02:39.9]} 21... Bb7 {[%clk 0:01:47.1]} 22. Bb3
{[%clk 0:02:39.1]} 22... Rad8 {[%clk 0:01:45.9]} 23. Rd3 {[%clk 0:02:39]} 23...
Ba6 {[%clk 0:01:28.6]} 24. Kh1 {[%clk 0:02:37.6]} 24... Ng7 {[%clk 0:01:24.4]}
25. c5 {[%clk 0:02:32.5]} 25... bxc5 {[%clk 0:01:17.6]} 26. Re3 {[%clk
0:02:31.7]} 26... Bxe2 {[%clk 0:00:36.3]} 27. Rxe2 {[%clk 0:02:24.9]} 27... Rxe2
{[%clk 0:00:28.1]} 28. Qxe2 {[%clk 0:02:25.8]} 28... cxd4 {[%clk 0:00:28.8]} 29.
Qc4 {[%clk 0:02:19.3]} 29... Ne6 {[%clk 0:00:28.9]} 30. Rd2 {[%clk 0:02:03.9]}
30... Qxf4 {[%clk 0:00:22]} 31. Re2 {[%clk 0:01:50.5]} 31... Ng5 {[%clk
0:00:08.8]} 32. Qxc6 {[%clk 0:01:46.6]} 32... d3 {[%clk 0:00:08.5]} 33. Re8+
{[%clk 0:01:45.9]} 33... Rxe8 {[%clk 0:00:08.3]} 34. Qxe8+ {[%clk 0:01:46.8]}
34... Kg7 {[%clk 0:00:08.8]} 35. Bc5 {[%clk 0:01:43.4]} 35... Be5 {[%clk
0:00:03.4]} 36. Qf8+ {[%clk 0:01:33.9]} 36... Kh7 {[%clk 0:00:03]} 37. Bg1
{[%clk 0:01:34.5]} 37... d2 {[%clk 0:00:03.1]} 38. Qe7 {[%clk 0:01:20.7]} 1-0

[Event "Early-Titled-Tuesday-Blitz-October-10-2023"]
[Site "Chess.com"]
[Date "2023.10.10"]
[Round "2"]
[White "angryspacevoid"]
[Black "Irina_Mikhaylova"]
[Result "1-0"]
[WhiteElo "2518"]
[BlackElo "2299"]
[TimeControl "180+1"]
[EndTime "8:16:55 PDT"]
[Termination "angryspacevoid won by resignation"]

1. e4 {[%clk 0:03:00.9]} 1... c5 {[%clk 0:03:00.2]} 2. c3 {[%clk 0:02:59.9]}
2... d5 {[%clk 0:02:59.9]} 3. exd5 {[%clk 0:02:59.3]} 3... Qxd5 {[%clk
0:03:00.8]} 4. d4 {[%clk 0:02:59.7]} 4... Nf6 {[%clk 0:03:00.5]} 5. Nf3 {[%clk
0:02:58.2]} 5... Bg4 {[%clk 0:03:00.4]} 6. Be2 {[%clk 0:02:55.3]} 6... e6 {[%clk
0:03:00]} 7. Na3 {[%clk 0:02:55.1]} 7... Nc6 {[%clk 0:02:59.9]} 8. Be3 {[%clk
0:02:54.4]} 8... cxd4 {[%clk 0:02:59.6]} 9. Nb5 {[%clk 0:02:54.6]} 9... Rc8
{[%clk 0:02:59.6]} 10. Nbxd4 {[%clk 0:02:54.3]} 10... Nxd4 {[%clk 0:02:58]} 11.
Bxd4 {[%clk 0:02:53.2]} 11... a6 {[%clk 0:02:35.3]} 12. Qa4+ {[%clk 0:02:38.7]}
12... Qd7 {[%clk 0:02:34.4]} 13. Qb3 {[%clk 0:02:37.2]} 13... Qd5 {[%clk
0:02:22.3]} 14. c4 {[%clk 0:02:23.9]} 14... Qe4 {[%clk 0:01:48.8]} 15. Qa4+
{[%clk 0:02:01.3]} 15... Qc6 {[%clk 0:01:40.3]} 16. Qb3 {[%clk 0:01:53.4]} 16...
Qe4 {[%clk 0:01:39.4]} 17. Be3 {[%clk 0:01:51.2]} 17... Qc6 {[%clk 0:00:58.9]}
18. O-O {[%clk 0:01:45.9]} 18... Bc5 {[%clk 0:00:53.2]} 19. Ne5 {[%clk
0:01:45.3]} 19... Qe4 {[%clk 0:00:44.8]} 20. Qa4+ {[%clk 0:01:34.3]} 20... b5
{[%clk 0:00:34.9]} 21. Qxa6 {[%clk 0:01:33.8]} 21... O-O {[%clk 0:00:35]} 22.
Bxc5 {[%clk 0:01:10.6]} 22... Rxc5 {[%clk 0:00:33.2]} 23. Nxg4 {[%clk
0:01:08.4]} 23... Qxe2 {[%clk 0:00:31.3]} 24. Nxf6+ {[%clk 0:01:08.1]} 24...
gxf6 {[%clk 0:00:31.6]} 25. cxb5 {[%clk 0:00:50.9]} 25... Rxb5 {[%clk
0:00:31.7]} 26. a4 {[%clk 0:00:48.1]} 26... Rxb2 {[%clk 0:00:31.3]} 27. Qd6
{[%clk 0:00:43.2]} 27... Rd2 {[%clk 0:00:18.8]} 28. Qg3+ {[%clk 0:00:38.9]}
28... Kh8 {[%clk 0:00:19.1]} 29. Qf4 {[%clk 0:00:39.5]} 29... f5 {[%clk
0:00:18.2]} 30. Ra3 {[%clk 0:00:37.5]} 30... Qg4 {[%clk 0:00:17.7]} 31. Qxd2
{[%clk 0:00:37]} 31... f4 {[%clk 0:00:17]} 1-0

[Event "Early-Titled-Tuesday-Blitz-October-10-2023"]
[Site "Chess.com"]
[Date "2023.10.10"]
[Round "2"]
[White "Chessdreamer2020"]
[Black "seopie"]
[Result "0-1"]
[WhiteElo "2544"]
[BlackElo "2770"]
[TimeControl "180+1"]
[EndTime "8:16:56 PDT"]
[Termination "seopie won by checkmate"]

1. e4 {[%clk 0:02:51.1]} 1... c5 {[%clk 0:02:58.7]} 2. Nf3 {[%clk 0:02:51.3]}
2... Nc6 {[%clk 0:02:58]} 3. Bb5 {[%clk 0:02:51.6]} 3... g6 {[%clk 0:02:56.2]}
4. O-O {[%clk 0:02:52]} 4... Bg7 {[%clk 0:02:55.5]} 5. c3 {[%clk 0:02:52.5]}
5... e5 {[%clk 0:02:54.8]} 6. d4 {[%clk 0:02:50.4]} 6... cxd4 {[%clk 0:02:54.8]}
7. cxd4 {[%clk 0:02:51.3]} 7... exd4 {[%clk 0:02:55]} 8. Bf4 {[%clk 0:02:51.9]}
8... Nge7 {[%clk 0:02:55.5]} 9. Bd6 {[%clk 0:02:52.4]} 9... a6 {[%clk
0:02:53.4]} 10. Bd3 {[%clk 0:02:50.2]} 10... O-O {[%clk 0:02:51]} 11. Nbd2
{[%clk 0:02:50.6]} 11... b5 {[%clk 0:02:50.2]} 12. a4 {[%clk 0:02:48.8]} 12...
bxa4 {[%clk 0:02:47.2]} 13. Rxa4 {[%clk 0:02:38.3]} 13... Bb7 {[%clk 0:02:41.8]}
14. Re1 {[%clk 0:02:37.2]} 14... Re8 {[%clk 0:02:41.5]} 15. e5 {[%clk
0:02:35.3]} 15... Nc8 {[%clk 0:02:41.3]} 16. Bc5 {[%clk 0:02:32.1]} 16... Nb6
{[%clk 0:02:39.9]} 17. Ra1 {[%clk 0:02:27.5]} 17... Nxe5 {[%clk 0:02:33.6]} 18.
Nxe5 {[%clk 0:02:14.2]} 18... Rxe5 {[%clk 0:02:31.7]} 19. Rxe5 {[%clk
0:02:05.5]} 19... Bxe5 {[%clk 0:02:32.6]} 20. Nf3 {[%clk 0:02:02.9]} 20... Bxf3
{[%clk 0:02:23.8]} 21. Qxf3 {[%clk 0:02:03.3]} 21... Rc8 {[%clk 0:02:22.6]} 22.
Bb4 {[%clk 0:01:41.1]} 22... d6 {[%clk 0:02:11.7]} 23. Ba5 {[%clk 0:01:24.6]}
23... Qc7 {[%clk 0:02:06]} 24. h4 {[%clk 0:01:07.6]} 24... Qc5 {[%clk
0:01:55.9]} 25. h5 {[%clk 0:00:43.6]} 25... Nc4 {[%clk 0:01:50.7]} 26. hxg6
{[%clk 0:00:42.1]} 26... hxg6 {[%clk 0:01:50]} 27. Be1 {[%clk 0:00:23.9]} 27...
Nxb2 {[%clk 0:01:46.9]} 28. Bxa6 {[%clk 0:00:23.4]} 28... Re8 {[%clk 0:01:38.5]}
29. Bb7 {[%clk 0:00:23.3]} 29... d3 {[%clk 0:01:33.8]} 30. Bd5 {[%clk
0:00:23.1]} 30... Qc7 {[%clk 0:01:31.7]} 31. Ba5 {[%clk 0:00:20.3]} 31... Qe7
{[%clk 0:01:31.1]} 32. Rc1 {[%clk 0:00:19.5]} 32... Qf6 {[%clk 0:01:26.9]} 33.
Qg4 {[%clk 0:00:10.1]} 33... Bf4 {[%clk 0:01:14.9]} 34. Rc7 {[%clk 0:00:05.6]}
34... d2 {[%clk 0:00:59.7]} 35. Rd7 {[%clk 0:00:04.5]} 35... Re1# {[%clk
0:00:58.1]} 0-1

[Event "Early-Titled-Tuesday-Blitz-October-10-2023"]
[Site "Chess.com"]
[Date "2023.10.10"]
[Round "2"]
[White "F-Ghaith2021"]
[Black "BeautiFullMindChess"]
[Result "1-0"]
[WhiteElo "2508"]
[BlackElo "2279"]
[TimeControl "180+1"]
[EndTime "8:16:59 PDT"]
[Termination "F-Ghaith2021 won on time"]

1. e4 {[%clk 0:03:00.9]} 1... c5 {[%clk 0:02:54.9]} 2. Nf3 {[%clk 0:03:00]} 2...
d6 {[%clk 0:02:55.2]} 3. d4 {[%clk 0:03:00.2]} 3... cxd4 {[%clk 0:02:54.6]} 4.
Nxd4 {[%clk 0:03:01.1]} 4... Nf6 {[%clk 0:02:54.5]} 5. Nc3 {[%clk 0:03:01.2]}
5... a6 {[%clk 0:02:38.8]} 6. Bg5 {[%clk 0:02:59.3]} 6... e6 {[%clk 0:02:31.9]}
7. f4 {[%clk 0:02:58.6]} 7... Be7 {[%clk 0:02:28.5]} 8. Qf3 {[%clk 0:02:57.5]}
8... Qc7 {[%clk 0:02:25.1]} 9. O-O-O {[%clk 0:02:47.9]} 9... Nbd7 {[%clk
0:02:24.9]} 10. Bd3 {[%clk 0:02:41.6]} 10... h6 {[%clk 0:02:24.4]} 11. Bh4
{[%clk 0:02:41.2]} 11... g5 {[%clk 0:02:22.3]} 12. fxg5 {[%clk 0:02:37.6]} 12...
Ne5 {[%clk 0:02:20.3]} 13. Qe2 {[%clk 0:02:34]} 13... Nfg4 {[%clk 0:02:14.9]}
14. h3 {[%clk 0:02:19]} 14... hxg5 {[%clk 0:02:05.9]} 15. Bg3 {[%clk 0:02:17.1]}
15... Nf6 {[%clk 0:00:58.8]} 16. Kb1 {[%clk 0:02:08.8]} 16... Bd7 {[%clk
0:00:56]} 17. Rhf1 {[%clk 0:02:04]} 17... O-O-O {[%clk 0:00:50.6]} 18. Nf3
{[%clk 0:01:55.6]} 18... g4 {[%clk 0:00:19.1]} 19. Nxe5 {[%clk 0:01:43.7]} 19...
dxe5 {[%clk 0:00:18.5]} 20. hxg4 {[%clk 0:01:44.3]} 20... Be8 {[%clk 0:00:13.5]}
21. Rf2 {[%clk 0:01:28.2]} 21... Nd7 {[%clk 0:00:12.1]} 22. Bc4 {[%clk
0:01:18.1]} 22... Kb8 {[%clk 0:00:11.8]} 23. Rff1 {[%clk 0:01:18.3]} 23... Rg8
{[%clk 0:00:09.7]} 24. Bb3 {[%clk 0:01:17.9]} 24... Nf6 {[%clk 0:00:08.9]} 25.
Rxd8+ {[%clk 0:01:14]} 25... Bxd8 {[%clk 0:00:08.7]} 26. Qc4 {[%clk 0:01:04]}
26... Nxg4 {[%clk 0:00:06.2]} 27. Qd3 {[%clk 0:00:52.2]} 27... f6 {[%clk
0:00:04.1]} 28. Rd1 {[%clk 0:00:51.9]} 28... Bd7 {[%clk 0:00:03.6]} 29. Qxd7
{[%clk 0:00:50.7]} 29... Qxd7 {[%clk 0:00:02.9]} 30. Rxd7 {[%clk 0:00:51.6]}
30... Ne3 {[%clk 0:00:03.2]} 31. Bf2 {[%clk 0:00:48.1]} 1-0

[Event "Early-Titled-Tuesday-Blitz-October-10-2023"]
[Site "Chess.com"]
[Date "2023.10.10"]
[Round "2"]
[White "Denis_Makhnyov"]
[Black "Mikhail_Golubev"]
[Result "1-0"]
[WhiteElo "2957"]
[BlackElo "2610"]
[TimeControl "180+1"]
[EndTime "8:17:05 PDT"]
[Termination "Denis_Makhnyov won on time"]

1. f4 {[%clk 0:03:00.9]} 1... Nf6 {[%clk 0:02:58.6]} 2. Nf3 {[%clk 0:03:01.2]}
2... Nc6 {[%clk 0:02:59.1]} 3. g3 {[%clk 0:03:00.1]} 3... d6 {[%clk 0:02:57.4]}
4. Bg2 {[%clk 0:02:59.9]} 4... e5 {[%clk 0:02:57.4]} 5. d3 {[%clk 0:02:56]} 5...
e4 {[%clk 0:02:45.7]} 6. dxe4 {[%clk 0:02:26.7]} 6... Nxe4 {[%clk 0:02:44.1]} 7.
Nbd2 {[%clk 0:02:27.3]} 7... Nxd2 {[%clk 0:02:09.9]} 8. Bxd2 {[%clk 0:02:26.2]}
8... d5 {[%clk 0:02:09.6]} 9. Bc3 {[%clk 0:02:21.2]} 9... Bf5 {[%clk 0:02:00.1]}
10. Nd4 {[%clk 0:02:02.1]} 10... Be4 {[%clk 0:01:49.7]} 11. Bxe4 {[%clk
0:01:10.2]} 11... dxe4 {[%clk 0:01:48.1]} 12. Nf5 {[%clk 0:01:10.8]} 12... f6
{[%clk 0:01:32.3]} 13. e3 {[%clk 0:01:06.9]} 13... Qd7 {[%clk 0:01:06.8]} 14.
Qxd7+ {[%clk 0:01:00.2]} 14... Kxd7 {[%clk 0:01:07.7]} 15. g4 {[%clk 0:01:00.7]}
15... Re8 {[%clk 0:00:54.9]} 16. h4 {[%clk 0:00:51]} 16... Rg8 {[%clk
0:00:51.4]} 17. a3 {[%clk 0:00:44.7]} 17... g6 {[%clk 0:00:41]} 18. Ng3 {[%clk
0:00:43.1]} 18... Bc5 {[%clk 0:00:09.6]} 19. Ke2 {[%clk 0:00:41.7]} 19... Rgf8
{[%clk 0:00:09]} 20. h5 {[%clk 0:00:38.4]} 20... f5 {[%clk 0:00:05.6]} 21. Rad1+
{[%clk 0:00:36.1]} 21... Kc8 {[%clk 0:00:05]} 22. hxg6 {[%clk 0:00:36.5]} 22...
hxg6 {[%clk 0:00:04.7]} 23. gxf5 {[%clk 0:00:34.1]} 23... gxf5 {[%clk
0:00:05.6]} 24. Rd5 {[%clk 0:00:34.5]} 24... Rg8 {[%clk 0:00:01.6]} 25. Rh3
{[%clk 0:00:28.8]} 1-0

[Event "Early-Titled-Tuesday-Blitz-October-10-2023"]
[Site "Chess.com"]
[Date "2023.10.10"]
[Round "2"]
[White "Sharan_Rao"]
[Black "emeli_chess"]
[Result "1/2-1/2"]
[WhiteElo "2596"]
[BlackElo "2363"]
[TimeControl "180+1"]
[EndTime "8:17:08 PDT"]
[Termination "Game drawn by repetition"]

1. d4 {[%clk 0:03:00.9]} 1... Nf6 {[%clk 0:02:59.6]} 2. c4 {[%clk 0:03:01.4]}
2... e6 {[%clk 0:02:59.6]} 3. Nf3 {[%clk 0:03:01.5]} 3... d5 {[%clk 0:02:58.7]}
4. cxd5 {[%clk 0:02:58.8]} 4... exd5 {[%clk 0:02:58.2]} 5. Bg5 {[%clk
0:02:59.4]} 5... Bb4+ {[%clk 0:02:57.2]} 6. Nc3 {[%clk 0:02:58.8]} 6... h6
{[%clk 0:02:56]} 7. Bxf6 {[%clk 0:02:54.6]} 7... Qxf6 {[%clk 0:02:55.6]} 8. e3
{[%clk 0:02:55.5]} 8... O-O {[%clk 0:02:55]} 9. Bd3 {[%clk 0:02:54.9]} 9... c5
{[%clk 0:02:54.4]} 10. O-O {[%clk 0:02:55.1]} 10... Bxc3 {[%clk 0:02:54.8]} 11.
bxc3 {[%clk 0:02:55.1]} 11... c4 {[%clk 0:02:55.7]} 12. Be2 {[%clk 0:02:51]}
12... Bf5 {[%clk 0:02:54.1]} 13. Ne5 {[%clk 0:02:50.6]} 13... Nd7 {[%clk
0:02:47.3]} 14. f4 {[%clk 0:02:50.2]} 14... Qd6 {[%clk 0:02:45]} 15. Bf3 {[%clk
0:02:47.5]} 15... Nf6 {[%clk 0:02:28.2]} 16. Qa4 {[%clk 0:02:43.3]} 16... Be4
{[%clk 0:02:23.4]} 17. Bxe4 {[%clk 0:02:26.2]} 17... Nxe4 {[%clk 0:02:23.2]} 18.
Qc2 {[%clk 0:02:26.9]} 18... b5 {[%clk 0:02:15.1]} 19. Rab1 {[%clk 0:02:26.4]}
19... Rab8 {[%clk 0:02:10.7]} 20. Rb2 {[%clk 0:02:17.4]} 20... f6 {[%clk
0:01:53.7]} 21. Ng6 {[%clk 0:02:15.7]} 21... Rf7 {[%clk 0:01:53.3]} 22. Rfb1
{[%clk 0:02:13]} 22... Rfb7 {[%clk 0:01:52.8]} 23. Nh4 {[%clk 0:02:08]} 23... a5
{[%clk 0:01:40.9]} 24. Nf5 {[%clk 0:02:08.2]} 24... Qd7 {[%clk 0:01:33.5]} 25.
Ng3 {[%clk 0:02:00.7]} 25... f5 {[%clk 0:01:26.9]} 26. Nxe4 {[%clk 0:01:55.9]}
26... fxe4 {[%clk 0:01:20.1]} 27. Qd2 {[%clk 0:01:56.8]} 27... Qc6 {[%clk
0:01:14.9]} 28. Qe1 {[%clk 0:01:56.7]} 28... b4 {[%clk 0:01:11]} 29. cxb4 {[%clk
0:01:56.8]} 29... c3 {[%clk 0:01:11.3]} 30. b5 {[%clk 0:01:49.9]} 30... Rxb5
{[%clk 0:01:08.4]} 31. Rxb5 {[%clk 0:01:41.4]} 31... Rxb5 {[%clk 0:01:08.1]} 32.
Rxb5 {[%clk 0:01:41.9]} 32... Qxb5 {[%clk 0:01:08.4]} 33. Qxc3 {[%clk
0:01:42.6]} 33... Qb1+ {[%clk 0:01:08.4]} 34. Kf2 {[%clk 0:01:42.7]} 34... Qxa2+
{[%clk 0:01:08.7]} 35. Kg3 {[%clk 0:01:43.4]} 35... Qe2 {[%clk 0:00:58.4]} 36.
Qc8+ {[%clk 0:01:11.6]} 36... Kh7 {[%clk 0:00:56.8]} 37. Qf5+ {[%clk 0:01:12.2]}
37... Kh8 {[%clk 0:00:56.8]} 38. Qf8+ {[%clk 0:01:07.5]} 38... Kh7 {[%clk
0:00:56.7]} 39. Qf5+ {[%clk 0:01:08.4]} 39... Kh8 {[%clk 0:00:56.5]} 40. Qxd5
{[%clk 0:00:58]} 40... Qxe3+ {[%clk 0:00:55.7]} 41. Kg4 {[%clk 0:00:58.4]} 41...
Qe2+ {[%clk 0:00:50]} 42. Kh3 {[%clk 0:00:57.6]} 42... Qd3+ {[%clk 0:00:45.1]}
43. g3 {[%clk 0:00:56.6]} 43... e3 {[%clk 0:00:44.8]} 44. Qe5 {[%clk 0:00:51.4]}
44... Qf1+ {[%clk 0:00:43.2]} 45. Kh4 {[%clk 0:00:49.3]} 45... e2 {[%clk
0:00:43.4]} 46. Qe8+ {[%clk 0:00:48.9]} 46... Kh7 {[%clk 0:00:43]} 47. Qe4+
{[%clk 0:00:49.3]} 47... Kh8 {[%clk 0:00:43]} 48. Qe8+ {[%clk 0:00:49.6]} 48...
Kh7 {[%clk 0:00:42.5]} 49. Qe4+ {[%clk 0:00:50.3]} 49... Kh8 {[%clk 0:00:42.2]}
50. Qe8+ {[%clk 0:00:51]} 1/2-1/2

[Event "Early-Titled-Tuesday-Blitz-October-10-2023"]
[Site "Chess.com"]
[Date "2023.10.10"]
[Round "2"]
[White "guillembaches"]
[Black "ZeGood_ZeBad_ZeUgly"]
[Result "1/2-1/2"]
[WhiteElo "2513"]
[BlackElo "2323"]
[TimeControl "180+1"]
[EndTime "8:17:10 PDT"]
[Termination "Game drawn by repetition"]

1. d4 {[%clk 0:03:00.9]} 1... d5 {[%clk 0:02:59.3]} 2. Nf3 {[%clk 0:03:01]} 2...
Nf6 {[%clk 0:02:58.9]} 3. Bg5 {[%clk 0:03:01.1]} 3... h6 {[%clk 0:02:55.2]} 4.
Bh4 {[%clk 0:03:00.6]} 4... Bf5 {[%clk 0:02:54.1]} 5. e3 {[%clk 0:02:59.6]} 5...
e6 {[%clk 0:02:53.6]} 6. Bd3 {[%clk 0:02:59]} 6... Nbd7 {[%clk 0:02:48.6]} 7.
O-O {[%clk 0:02:56]} 7... Be7 {[%clk 0:02:48.4]} 8. Bxf5 {[%clk 0:02:52.1]} 8...
exf5 {[%clk 0:02:49.3]} 9. Qd3 {[%clk 0:02:50]} 9... Ne4 {[%clk 0:02:47.6]} 10.
Bxe7 {[%clk 0:02:49]} 10... Qxe7 {[%clk 0:02:48.3]} 11. c4 {[%clk 0:02:43.5]}
11... c6 {[%clk 0:02:37.1]} 12. cxd5 {[%clk 0:02:42.4]} 12... cxd5 {[%clk
0:02:38]} 13. Nc3 {[%clk 0:02:40.1]} 13... Nxc3 {[%clk 0:02:10]} 14. Qxc3 {[%clk
0:02:38.8]} 14... O-O {[%clk 0:02:02.5]} 15. Rac1 {[%clk 0:02:35.6]} 15... Nf6
{[%clk 0:01:51.2]} 16. Ne5 {[%clk 0:02:29.9]} 16... Ne4 {[%clk 0:01:40.8]} 17.
Qc7 {[%clk 0:02:21.2]} 17... Qb4 {[%clk 0:01:39.1]} 18. Rc2 {[%clk 0:02:08.3]}
18... f6 {[%clk 0:01:05.4]} 19. Nd3 {[%clk 0:01:57.3]} 19... Qb5 {[%clk
0:00:59.1]} 20. Nf4 {[%clk 0:01:46.1]} 20... Rf7 {[%clk 0:00:44.9]} 21. Rc5
{[%clk 0:01:10.7]} 21... Nxc5 {[%clk 0:00:42.4]} 22. Qxc5 {[%clk 0:01:10.3]}
22... Qxc5 {[%clk 0:00:41.9]} 23. dxc5 {[%clk 0:01:10.3]} 23... Rc8 {[%clk
0:00:37.3]} 24. b4 {[%clk 0:01:09.8]} 24... a5 {[%clk 0:00:37]} 25. a3 {[%clk
0:01:09.6]} 25... Rd7 {[%clk 0:00:34.8]} 26. Rd1 {[%clk 0:01:05.7]} 26... Kf7
{[%clk 0:00:29.6]} 27. Rd4 {[%clk 0:00:56.7]} 27... b6 {[%clk 0:00:21.5]} 28.
Nd3 {[%clk 0:00:54.8]} 28... axb4 {[%clk 0:00:20.6]} 29. axb4 {[%clk 0:00:54.1]}
29... bxc5 {[%clk 0:00:21.3]} 30. Nxc5 {[%clk 0:00:50]} 30... Rd6 {[%clk
0:00:16.1]} 31. g3 {[%clk 0:00:47.8]} 31... Rb8 {[%clk 0:00:15.5]} 32. h4 {[%clk
0:00:45.6]} 32... g5 {[%clk 0:00:15.5]} 33. Kg2 {[%clk 0:00:44.8]} 33... g4
{[%clk 0:00:15.3]} 34. Nd3 {[%clk 0:00:44.1]} 34... Rb5 {[%clk 0:00:12]} 35. Rf4
{[%clk 0:00:41.7]} 35... Kg6 {[%clk 0:00:09.3]} 36. Rd4 {[%clk 0:00:41.7]} 36...
Kf7 {[%clk 0:00:08.5]} 37. Rf4 {[%clk 0:00:41.1]} 37... Kg6 {[%clk 0:00:08.8]}
38. Rd4 {[%clk 0:00:41.2]} 38... Kf7 {[%clk 0:00:09.3]} 1/2-1/2

[Event "Early-Titled-Tuesday-Blitz-October-10-2023"]
[Site "Chess.com"]
[Date "2023.10.10"]
[Round "2"]
[White "KamlaPasand"]
[Black "KejJaj"]
[Result "1-0"]
[WhiteElo "2465"]
[BlackElo "2191"]
[TimeControl "180+1"]
[EndTime "8:17:13 PDT"]
[Termination "KamlaPasand won by resignation"]

1. e4 {[%clk 0:03:00.9]} 1... c5 {[%clk 0:02:59.4]} 2. Nf3 {[%clk 0:02:58.6]}
2... d6 {[%clk 0:02:59.9]} 3. d4 {[%clk 0:02:57.5]} 3... cxd4 {[%clk 0:03:00.8]}
4. Nxd4 {[%clk 0:02:56.5]} 4... Nf6 {[%clk 0:03:01.4]} 5. Nc3 {[%clk 0:02:56.7]}
5... g6 {[%clk 0:03:02.1]} 6. Be3 {[%clk 0:02:50.9]} 6... Bg7 {[%clk 0:03:02.7]}
7. f3 {[%clk 0:02:51.1]} 7... O-O {[%clk 0:03:02.7]} 8. Bc4 {[%clk 0:02:51.7]}
8... Nc6 {[%clk 0:03:03.1]} 9. Qd2 {[%clk 0:02:51.6]} 9... Nd7 {[%clk
0:03:03.2]} 10. O-O-O {[%clk 0:02:42.4]} 10... Nb6 {[%clk 0:03:03.7]} 11. Bb3
{[%clk 0:02:39.1]} 11... Na5 {[%clk 0:03:04.3]} 12. Qe2 {[%clk 0:02:28]} 12...
Nxb3+ {[%clk 0:03:02.5]} 13. cxb3 {[%clk 0:02:28.1]} 13... a5 {[%clk 0:03:03]}
14. Kb1 {[%clk 0:02:28.1]} 14... a4 {[%clk 0:02:57.1]} 15. bxa4 {[%clk 0:02:28]}
15... Nxa4 {[%clk 0:02:56.6]} 16. Nxa4 {[%clk 0:02:28.1]} 16... Rxa4 {[%clk
0:02:57.5]} 17. Nb3 {[%clk 0:02:27]} 17... Be6 {[%clk 0:02:54.3]} 18. Qb5 {[%clk
0:02:23.8]} 18... Qa8 {[%clk 0:02:48.9]} 19. a3 {[%clk 0:02:24.1]} 19... Bxb2
{[%clk 0:02:19]} 20. Kxb2 {[%clk 0:02:23.9]} 20... Rxa3 {[%clk 0:02:19.1]} 21.
Ra1 {[%clk 0:02:23.3]} 21... Ra6 {[%clk 0:01:39.5]} 22. f4 {[%clk 0:02:09.3]}
22... Rc8 {[%clk 0:01:37]} 23. f5 {[%clk 0:02:06.8]} 23... Bc4 {[%clk
0:01:36.9]} 24. Qb4 {[%clk 0:02:04.5]} 24... Bd3 {[%clk 0:01:32.9]} 25. Rhc1
{[%clk 0:02:00.5]} 25... Rxa1 {[%clk 0:01:16.2]} 26. Rxc8+ {[%clk 0:01:57.6]}
26... Qxc8 {[%clk 0:01:15.1]} 27. Nxa1 {[%clk 0:01:58.2]} 27... Qc6 {[%clk
0:01:05.4]} 28. fxg6 {[%clk 0:01:53.8]} 28... hxg6 {[%clk 0:01:04.8]} 29. Qc3
{[%clk 0:01:51]} 29... Qb5+ {[%clk 0:00:59.7]} 30. Nb3 {[%clk 0:01:50.2]} 30...
Bxe4 {[%clk 0:00:56.6]} 31. Bh6 {[%clk 0:01:47.7]} 31... Qe2+ {[%clk 0:00:51.8]}
32. Nd2 {[%clk 0:01:45.2]} 32... f6 {[%clk 0:00:49.3]} 33. Qc8+ {[%clk
0:01:40.8]} 33... Kf7 {[%clk 0:00:49.4]} 34. Qf8+ {[%clk 0:01:37.4]} 34... Ke6
{[%clk 0:00:49.9]} 35. Qc8+ {[%clk 0:01:33.7]} 35... Ke5 {[%clk 0:00:48]} 36. g3
{[%clk 0:01:21.4]} 36... g5 {[%clk 0:00:44.2]} 37. Qc3+ {[%clk 0:01:15.8]} 37...
Kf5 {[%clk 0:00:38]} 38. h4 {[%clk 0:01:13.9]} 38... Qh5 {[%clk 0:00:26.3]} 39.
hxg5 {[%clk 0:01:13.5]} 39... Bd5 {[%clk 0:00:20.3]} 40. Qd3+ {[%clk 0:01:10.2]}
40... Ke6 {[%clk 0:00:20.2]} 41. Qe3+ {[%clk 0:01:05.3]} 41... Kd7 {[%clk
0:00:20.2]} 42. gxf6 {[%clk 0:01:05.2]} 42... exf6 {[%clk 0:00:19.4]} 43. Bf4
{[%clk 0:01:05.3]} 43... Qf5 {[%clk 0:00:18.2]} 44. Qd4 {[%clk 0:01:04.9]} 44...
Qg6 {[%clk 0:00:15.7]} 45. Qxd5 {[%clk 0:01:04.6]} 45... Kc8 {[%clk 0:00:11.5]}
46. Qxd6 {[%clk 0:01:04.4]} 1-0